fUST/lending_fUST_20240620
["ID","MTS","AMOUNT","RATE_DAILY","PERIOD"]
[329980519,1718892644599,-500.0,0.0005589,120]
[329980520,1718892644608,-500.0,0.0005589,120]
[329980521,1718892644623,-1302.22,0.0005589,120]
[329980522,1718892644632,-1219.37,0.0005589,120]
[329980523,1718892644642,-500.0,0.0005589,120]
[329980524,1718892644651,-505.48330168,0.0005589,120]
[329980525,1718892644661,-500.0,0.0005589,120]
[329980526,1718892644671,-500.0,0.0005589,120]
[329980527,1718892644681,-500.0,0.0005589,120]
[329980528,1718892644690,-510.23,0.0005589,120]
[329980529,1718892644699,-500.0,0.0005589,120]
[329980530,1718892644709,-500.0,0.0005589,120]
[329980531,1718892644719,-583.43,0.0005589,2]
[329980532,1718892644729,-500.0,0.0005589,120]
[329980533,1718892644738,-500.0,0.0005589,2]
[329980534,1718892644749,-5268.17357253,0.00056137,2]
[329980535,1718892644758,-500.0,0.00056161,120]
[329980536,1718892644768,-500.0,0.00056161,120]
[329980537,1718892644778,-513.73059235,0.00056161,120]
[329980538,1718892644788,-500.0,0.00056161,120]
[329980539,1718892644797,-500.0,0.00056161,120]
[329980540,1718892644808,-482.49264353,0.00056161,120]
[329980541,1718892644818,-500.0,0.00056161,120]
[329980542,1718892644827,-500.0,0.00056161,120]
[329980543,1718892644837,-500.0,0.00056161,120]
[329980544,1718892644847,-500.0,0.00056161,120]
[329980545,1718892644857,-500.0,0.00056161,120]
[329980546,1718892644872,-200.0,0.00056161,7]
[329980547,1718892644882,-500.0,0.00056161,120]
[329980548,1718892644892,-716.98,0.00056161,120]
[329980549,1718892644901,-500.0,0.00056161,120]
[329980550,1718892644911,-515.34793791,0.00056161,120]
[329980551,1718892644920,-523.8606731,0.00056161,120]
[329980552,1718892644930,-500.0,0.00056161,120]
[329980553,1718892644940,-500.0,0.00056161,20]
[329980554,1718892644950,-509.73294023,0.00056161,120]
[329980555,1718892644960,-506.40927252,0.00056161,120]
[329980556,1718892644970,-500.0,0.00056161,120]
[329980557,1718892644980,-500.0,0.00056161,2]
[329980558,1718892644989,-500.0,0.00056161,120]
[329980559,1718892644998,-500.0,0.00056161,120]
[329980560,1718892645008,-500.0,0.00056161,120]
[329980561,1718892645019,-339.79832333,0.00056161,120]
[329980562,1718892645030,-500.0,0.00056161,120]
[329980563,1718892645040,-382.96586553,0.00056161,120]
[329980564,1718892645050,-500.0,0.00056161,60]
[329980565,1718892645059,-500.0,0.00056161,120]
[329980566,1718892645068,-500.0,0.00056161,120]
[329980567,1718892645078,-500.0,0.00056161,120]
[329980568,1718892645087,-724.68,0.00056161,120]
[329980569,1718892645099,-500.0,0.00056161,120]
[329980570,1718892645114,-500.0,0.00056161,120]
[329980571,1718892645123,-500.0,0.00056161,120]
[329980572,1718892645132,-500.0,0.00056161,120]
[329980573,1718892645142,-2258.25,0.00056161,120]
[329980574,1718892645151,-500.0,0.00056161,120]
[329980575,1718892645161,-500.0,0.00056161,120]
[329980576,1718892645170,-508.20157269,0.00056161,120]
[329980577,1718892645181,-500.0,0.00056161,120]
[329980578,1718892645191,-500.0,0.00056161,120]
[329980579,1718892645201,-500.0,0.00056161,120]
[329980580,1718892645211,-500.0,0.00056161,120]
[329980581,1718892645220,-500.0,0.00056161,120]
[329980582,1718892645229,-500.0,0.00056161,120]
[329980583,1718892645239,-500.0,0.00056161,120]
[329980584,1718892645248,-500.0,0.00056161,120]
[329980585,1718892645258,-500.0,0.00056161,120]
[329980586,1718892645268,-500.0,0.00056161,120]
[329980587,1718892645278,-500.0,0.00056161,120]
[329980588,1718892645288,-500.0,0.00056161,120]
[329980589,1718892645297,-500.0,0.00056161,120]
[329980590,1718892645307,-500.0,0.00056161,120]
[329980591,1718892645316,-500.0,0.00056161,120]
[329980592,1718892645325,-501.4223404,0.00056161,120]
[329980593,1718892645335,-500.0,0.00056161,120]
[329980594,1718892645345,-412.15290222,0.00056161,120]
[329980595,1718892645356,-500.0,0.00056161,120]
[329980596,1718892645368,-238.56231415,0.00056161,120]
[329980597,1718892645377,-500.0,0.00056161,120]
[329980598,1718892645386,-29722.08,0.00056161,120]
[329980599,1718892645395,-500.0,0.00056161,120]
[329980600,1718892645404,-510.14145073,0.00056161,120]
[329980601,1718892645415,-548.2388681,0.00056161,120]
[329980602,1718892645424,-1327.87,0.00056161,120]
[329980603,1718892645433,-509.86216907,0.00056161,120]
[329980604,1718892645442,-1679.52,0.00056161,21]
[329980605,1718892645451,-699.94,0.00056161,120]
[329980606,1718892645460,-500.0,0.00056161,120]
[329980607,1718892645470,-3101.12,0.00056161,120]
[329980608,1718892645479,-504.66410157,0.00056161,120]
[329980609,1718892645488,-522.66443647,0.00056161,120]
[329980610,1718892645497,-500.0,0.00056161,120]
[329980611,1718892645507,-500.0,0.00056161,120]
[329980612,1718892645518,-524.40122633,0.00056161,120]
[329980613,1718892645527,-500.0,0.00056161,7]
[329980614,1718892645536,-505.24337153,0.00056161,120]
[329980615,1718892645546,-500.0,0.00056161,120]
[329980616,1718892645555,-500.0,0.00056161,120]
[329980617,1718892645565,-500.0,0.00056161,120]
[329980618,1718892645574,-1180.05,0.00056161,120]
[329980619,1718892645583,-500.0,0.00056161,120]
[329980620,1718892645593,-500.0,0.00056161,120]
[329980621,1718892645603,-500.0,0.00056161,120]
[329980622,1718892645614,-506.94,0.00056161,120]
[329980623,1718892645624,-500.0,0.00056161,120]
[329980624,1718892645633,-500.0,0.00056161,120]
[329980625,1718892645642,-500.0,0.00056161,120]
[329980626,1718892645652,-500.0,0.00056161,120]
[329980627,1718892645661,-500.0,0.00056161,120]
[329980628,1718892645671,-793.66,0.00056161,120]
[329980629,1718892645680,-541.64,0.00056161,120]
[329980630,1718892645690,-500.0,0.00056161,120]
[329980631,1718892645699,-4839.61,0.00056161,120]
[329980632,1718892645708,-500.0,0.00056161,120]
[329980633,1718892645718,-585.18670268,0.00056161,120]
[329980634,1718892645727,-511.4836172,0.00056161,120]
[329980635,1718892645736,-500.0,0.00056161,30]
[329980636,1718892645746,-500.0,0.00056161,120]
[329980637,1718892645756,-500.0,0.00056161,60]
[329980638,1718892645766,-500.0,0.00056161,120]
[329980639,1718892645776,-3319.66,0.00056161,120]
[329980640,1718892645786,-833.47,0.00056161,120]
[329980641,1718892645796,-500.0,0.00056161,120]
[329980642,1718892645806,-669.68,0.00056161,120]
[329980643,1718892645816,-500.0,0.00056161,120]
[329980644,1718892645827,-500.0,0.00056161,120]
[329980645,1718892645837,-626.88845059,0.00056161,120]
[329980646,1718892645847,-500.0,0.00056161,120]
[329980647,1718892645856,-225.26932598,0.00056161,120]
[329980648,1718892645868,-500.0,0.00056161,120]
[329980649,1718892645878,-500.0,0.00056161,120]
[329980650,1718892645887,-500.0,0.00056161,120]
[329980651,1718892645970,-500.0,0.00056161,2]
[329980652,1718892645980,-500.0,0.00056161,120]
[329980653,1718892645989,-500.0,0.00056161,120]
[329980654,1718892645999,-2211.51,0.00056162,120]
[329980655,1718892646009,-1980.76,0.00056162,120]
[329980656,1718892646019,-514.4140487,0.00056162,120]
[329980657,1718892646028,-500.0,0.00056162,120]
[329980658,1718892646037,-500.0,0.00056162,120]
[329980659,1718892646047,-500.0,0.00056162,120]
[329980660,1718892646057,-500.0,0.00056162,120]
[329980661,1718892646066,-502.83306946,0.00056162,120]
[329980662,1718892646075,-176.65892902,0.00056162,120]
[329980663,1718892646084,-500.0,0.00056162,120]
[329980664,1718892646094,-500.0,0.00056162,120]
[329980665,1718892646108,-500.0,0.00056164,120]
[329980666,1718892646119,-552.4,0.00056164,120]
[329980667,1718892646129,-3787.13,0.00056164,120]
[329980668,1718892646139,-762.61,0.00056164,120]
[329980669,1718892646150,-500.0,0.00056164,120]
[329980670,1718892646160,-5367.49,0.00056164,120]
[329980671,1718892646170,-500.0,0.00056164,120]
[329980672,1718892646180,-500.0,0.00056164,120]
[329980673,1718892646192,-3426.57,0.00056164,120]
[329980674,1718892646202,-500.0,0.00056164,120]
[329980675,1718892646211,-500.0,0.00056164,120]
[329980676,1718892646220,-3176.6,0.00056164,120]
[329980677,1718892646230,-500.0,0.00056164,120]
[329980678,1718892646239,-500.0,0.00056164,120]
[329980679,1718892646249,-500.0,0.00056164,120]
[329980680,1718892646259,-1302.22,0.00056164,120]
[329980681,1718892646268,-1219.37,0.00056164,120]
[329980682,1718892646277,-500.0,0.00056164,120]
[329980683,1718892646287,-500.0,0.00056164,120]
[329980684,1718892646296,-500.0,0.00056164,120]
[329980685,1718892646305,-500.0,0.00056164,120]
[329980686,1718892646314,-510.23,0.00056164,120]
[329980687,1718892646323,-500.0,0.00056164,120]
[329980688,1718892646332,-500.0,0.00056164,120]
[329980689,1718892646341,-583.43,0.00056164,2]
[329980690,1718892646350,-500.0,0.00056164,120]
[329980691,1718892646359,-500.0,0.00056164,2]
[329980692,1718892646374,-5268.17357253,0.00056222,2]
[329980693,1718892646384,-869.58,0.00056336,120]
[329980694,1718892646393,-500.0,0.00056435,120]
[329980695,1718892646403,-500.0,0.00056435,120]
[329980696,1718892646412,-500.0,0.00056435,120]
[329980697,1718892646421,-500.0,0.00056435,120]
[329980698,1718892646431,-514.60013356,0.00056435,120]
[329980699,1718892646440,-500.0,0.00056435,120]
[329980700,1718892646449,-516.28598632,0.00056435,120]
[329980701,1718892646458,-500.0,0.00056435,120]
[329980702,1718892646467,-511.91994521,0.00056435,120]
[329980703,1718892646476,-200.0,0.00056435,7]
[329980704,1718892646486,-500.0,0.00056435,120]
[329980705,1718892646495,-716.98,0.00056435,120]
[329980706,1718892646504,-515.18669322,0.00056435,120]
[329980707,1718892646513,-500.0,0.00056435,120]
[329980708,1718892646522,-500.0,0.00056435,20]
[329980709,1718892646532,-500.0,0.00056435,120]
[329980710,1718892646541,-500.0,0.00056435,2]
[329980711,1718892646550,-500.0,0.00056435,120]
[329980712,1718892646559,-500.0,0.00056435,120]
[329980713,1718892646568,-506.38989074,0.00056435,120]
[329980715,1718892646578,-500.0,0.00056435,120]
[329980716,1718892646586,-500.0,0.00056435,60]
[329980718,1718892646595,-500.0,0.00056435,120]
[329980720,1718892646605,-500.0,0.00056435,120]
[329980721,1718892646616,-515.51458679,0.00056435,120]
[329980723,1718892646626,-724.68,0.00056435,120]
[329980725,1718892646635,-500.0,0.00056435,120]
[329980727,1718892646643,-500.0,0.00056435,120]
[329980729,1718892646652,-500.0,0.00056435,120]
[329980731,1718892646661,-500.0,0.00056435,120]
[329980733,1718892646671,-2258.25,0.00056435,120]
[329980735,1718892646681,-371.0482494,0.00056435,120]
[329980737,1718892646690,-500.0,0.00056435,120]
[329980739,1718892646700,-500.0,0.00056435,120]
[329980741,1718892646709,-500.0,0.00056435,120]
[329980743,1718892646718,-500.0,0.00056435,120]
[329980744,1718892646727,-534.29561651,0.00056435,120]
[329980745,1718892646737,-500.0,0.00056435,120]
[329980746,1718892646747,-500.0,0.00056435,120]
[329980747,1718892646756,-500.0,0.00056435,120]
[329980748,1718892646765,-515.49969548,0.00056435,120]
[329980749,1718892646776,-504.54144743,0.00056435,120]
[329980750,1718892646790,-500.0,0.00056435,120]
[329980751,1718892646804,-500.0,0.00056435,120]
[329980752,1718892646818,-500.0,0.00056435,120]
[329980753,1718892646829,-500.0,0.00056435,120]
[329980754,1718892646843,-500.0,0.00056435,120]
[329980755,1718892646856,-500.0,0.00056435,120]
[329980756,1718892646870,-500.0,0.00056435,120]
[329980757,1718892646884,-438.70083541,0.00056435,120]
[329980758,1718892646898,-29722.08,0.00056435,120]
[329980759,1718892646910,-500.0,0.00056435,120]
[329980760,1718892646927,-1327.87,0.00056435,120]
[329980761,1718892646941,-1679.52,0.00056435,21]
[329980762,1718892646954,-699.94,0.00056435,120]
[329980763,1718892646967,-500.0,0.00056435,120]
[329980764,1718892646979,-3101.12,0.00056435,120]
[329980766,1718892646992,-505.03015383,0.00056435,120]
[329980768,1718892647005,-507.58308194,0.00056435,120]
[329980770,1718892647017,-500.0,0.00056435,7]
[329980772,1718892647028,-500.0,0.00056435,120]
[329980774,1718892647040,-500.0,0.00056435,120]
[329980776,1718892647052,-500.0,0.00056435,120]
[329980778,1718892647066,-1180.05,0.00056435,120]
[329980779,1718892647080,-507.53926927,0.00056435,120]
[329980780,1718892647093,-509.49608353,0.00056435,120]
[329980781,1718892647109,-500.0,0.00056435,120]
[329980782,1718892647128,-506.94,0.00056435,120]
[329980783,1718892647143,-500.0,0.00056435,120]
[329980784,1718892647154,-549.43068168,0.00056435,120]
[329980785,1718892647164,-540.22316097,0.00056435,120]
[329980786,1718892647175,-500.0,0.00056435,120]
[329980787,1718892647188,-510.14293151,0.00056435,120]
[329980788,1718892647203,-793.66,0.00056435,120]
[329980789,1718892647217,-541.64,0.00056435,120]
[329980790,1718892647227,-450.52879653,0.00056435,120]
[329980791,1718892647239,-4839.61,0.00056435,120]
[329980792,1718892647251,-510.59625241,0.00056435,120]
[329980793,1718892647264,-500.0,0.00056435,30]
[329980794,1718892647276,-500.0,0.00056435,120]
[329980795,1718892647287,-500.0,0.00056435,60]
[329980796,1718892647299,-318.6087921,0.00056435,120]
[329980797,1718892647310,-3319.66,0.00056435,120]
[329980798,1718892647321,-833.47,0.00056435,120]
[329980799,1718892647333,-500.0,0.00056435,120]
[329980800,1718892647344,-669.68,0.00056435,120]
[329980801,1718892647356,-500.0,0.00056435,120]
[329980802,1718892647373,-500.0,0.00056435,120]
[329980803,1718892647384,-500.0,0.00056435,120]
[329980805,1718892647395,-500.0,0.00056435,120]
[329980807,1718892647406,-500.0,0.00056435,120]
[329980809,1718892647416,-500.0,0.00056435,120]
[329980810,1718892647428,-500.0,0.00056435,2]
[329980811,1718892647438,-500.0,0.00056435,120]
[329980812,1718892647449,-500.0,0.00056435,120]
[329980813,1718892647460,-2211.51,0.00056436,120]
[329980814,1718892647471,-1980.76,0.00056436,120]
[329980815,1718892647483,-500.0,0.00056436,120]
[329980816,1718892647495,-500.0,0.00056436,120]
[329980817,1718892647507,-500.0,0.00056436,120]
[329980818,1718892647518,-500.0,0.00056436,120]
[329980819,1718892647530,-500.0,0.00056436,120]
[329980820,1718892647542,-580.04713733,0.00056436,120]
[329980821,1718892647554,-500.0,0.00056438,120]
[329980822,1718892647566,-552.4,0.00056438,120]
[329980823,1718892647577,-3787.13,0.00056438,120]
[329980826,1718892647589,-762.61,0.00056438,120]
[329980828,1718892647600,-500.0,0.00056438,120]
[329980830,1718892647611,-5367.49,0.00056438,120]
[329980832,1718892647627,-500.0,0.00056438,120]
[329980833,1718892647638,-500.0,0.00056438,120]
[329980834,1718892647651,-3426.57,0.00056438,120]
[329980835,1718892647662,-500.0,0.00056438,120]
[329980836,1718892647674,-500.0,0.00056438,120]
[329980837,1718892647686,-3176.6,0.00056438,120]
[329980838,1718892647698,-500.0,0.00056438,120]
[329980839,1718892647710,-500.0,0.00056438,120]
[329980840,1718892647721,-539.63329671,0.00056438,120]
[329980841,1718892647732,-1302.22,0.00056438,120]
[329980842,1718892647743,-1219.37,0.00056438,120]
[329980843,1718892647755,-647.09208893,0.00056438,120]
[329980844,1718892647766,-533.64204068,0.00056438,120]
[329980845,1718892647777,-500.0,0.00056438,120]
[329980846,1718892647789,-500.0,0.00056438,120]
[329980847,1718892647801,-510.23,0.00056438,120]
[329980848,1718892647919,-500.0,0.00056438,120]
[329980849,1718892647931,-500.0,0.00056438,120]
[329980850,1718892647941,-583.43,0.00056438,2]
[329980851,1718892647952,-500.0,0.00056438,120]
[329980852,1718892647961,-500.0,0.00056438,2]
[329980853,1718892647971,-5268.17357253,0.00056628,2]
[329980854,1718892647982,-500.0,0.00056709,120]
[329980855,1718892647991,-500.0,0.00056709,120]
[329980856,1718892648001,-500.0,0.00056709,120]
[329980857,1718892648011,-639.65841212,0.00056709,120]
[329980858,1718892648020,-517.17984496,0.00056709,120]
[329980859,1718892648030,-500.0,0.00056709,120]
[329980860,1718892648040,-200.0,0.00056709,7]
[329980861,1718892648050,-500.0,0.00056709,120]
[329980862,1718892648059,-716.98,0.00056709,120]
[329980863,1718892648069,-500.0,0.00056709,120]
[329980864,1718892648079,-319.66341563,0.00056709,20]
[329980865,1718892648089,-514.54374782,0.00056709,120]
[329980866,1718892648100,-500.0,0.00056709,2]
[329980867,1718892648111,-526.73879693,0.00056709,120]
[329980868,1718892648130,-500.0,0.00056709,120]
[329980869,1718892648139,-500.0,0.00056709,120]
[329980870,1718892648150,-500.0,0.00056709,60]
[329980871,1718892648160,-500.0,0.00056709,120]
[329980872,1718892648171,-451.96651901,0.00056709,120]
[329980873,1718892648181,-724.68,0.00056709,120]
[329980874,1718892648191,-500.0,0.00056709,120]
[329980875,1718892648202,-500.0,0.00056709,120]
[329980876,1718892648212,-500.0,0.00056709,120]
[329980877,1718892648222,-508.75984713,0.00056709,120]
[329980878,1718892648232,-2258.25,0.00056709,120]
[329980879,1718892648241,-511.9882498,0.00056709,120]
[329980880,1718892648250,-500.0,0.00056709,120]
[329980881,1718892648259,-500.0,0.00056709,120]
[329980882,1718892648269,-500.0,0.00056709,120]
[329980883,1718892648278,-500.0,0.00056709,120]
[329980884,1718892648288,-500.0,0.00056709,120]
[329980885,1718892648297,-500.0,0.00056709,120]
[329980886,1718892648306,-298.29642922,0.00056709,120]
[329980887,1718892648315,-500.0,0.00056709,120]
[329980888,1718892648325,-512.68982664,0.00056709,120]
[329980889,1718892648334,-500.0,0.00056709,120]
[329980890,1718892648343,-500.0,0.00056709,120]
[329980891,1718892648352,-540.21136308,0.00056709,120]
[329980892,1718892648361,-500.0,0.00056709,120]
[329980893,1718892648374,-29722.08,0.00056709,120]
[329980894,1718892648383,-500.0,0.00056709,120]
[329980895,1718892648393,-1327.87,0.00056709,120]
[329980896,1718892648402,-1679.52,0.00056709,21]
[329980897,1718892648411,-699.94,0.00056709,120]
[329980898,1718892648420,-500.0,0.00056709,120]
[329980899,1718892648429,-3101.12,0.00056709,120]
[329980900,1718892648438,-505.39077078,0.00056709,7]
[329980901,1718892648447,-580.67754384,0.00056709,120]
[329980902,1718892648457,-500.0,0.00056709,120]
[329980903,1718892648466,-589.82225239,0.00056709,120]
[329980904,1718892648475,-1180.05,0.00056709,120]
[329980905,1718892648484,-351.29835581,0.00056709,120]
[329980906,1718892648494,-506.94,0.00056709,120]
[329980907,1718892648503,-500.0,0.00056709,120]
[329980908,1718892648512,-500.0,0.00056709,120]
[329980909,1718892648521,-793.66,0.00056709,120]
[329980910,1718892648530,-541.64,0.00056709,120]
[329980911,1718892648539,-4839.61,0.00056709,120]
[329980912,1718892648549,-500.0,0.00056709,30]
[329980913,1718892648559,-500.0,0.00056709,120]
[329980914,1718892648568,-500.0,0.00056709,60]
[329980915,1718892648577,-3319.66,0.00056709,120]
[329980916,1718892648587,-833.47,0.00056709,120]
[329980917,1718892648596,-391.11443703,0.00056709,120]
[329980918,1718892648605,-669.68,0.00056709,120]
[329980919,1718892648618,-500.0,0.00056709,120]
[329980920,1718892648627,-500.0,0.00056709,120]
[329980921,1718892648636,-500.0,0.00056709,120]
[329980922,1718892648645,-515.6749748,0.00056709,120]
[329980923,1718892648654,-508.03708302,0.00056709,120]
[329980924,1718892648663,-500.0,0.00056709,120]
[329980925,1718892648673,-500.0,0.00056709,2]
[329980926,1718892648682,-500.0,0.00056709,120]
[329980927,1718892648691,-542.58115087,0.00056709,120]
[329980928,1718892648701,-2211.51,0.0005671,120]
[329980929,1718892648710,-1980.76,0.0005671,120]
[329980930,1718892648720,-500.0,0.0005671,120]
[329980931,1718892648729,-500.0,0.0005671,120]
[329980932,1718892648738,-500.0,0.0005671,120]
[329980933,1718892648747,-434.13532065,0.0005671,120]
[329980934,1718892648757,-505.56935591,0.0005671,120]
[329980935,1718892648766,-500.0,0.00056712,120]
[329980936,1718892648776,-552.4,0.00056712,120]
[329980937,1718892648785,-3787.13,0.00056712,120]
[329980938,1718892648795,-762.61,0.00056712,120]
[329980939,1718892648804,-500.0,0.00056712,120]
[329980940,1718892648814,-5367.49,0.00056712,120]
[329980941,1718892648823,-500.0,0.00056712,120]
[329980942,1718892648832,-260.40703479,0.00056712,120]
[329980943,1718892648842,-3426.57,0.00056712,120]
[329980944,1718892648851,-500.0,0.00056712,120]
[329980945,1718892648860,-500.0,0.00056712,120]
[329980946,1718892648874,-3176.6,0.00056712,120]
[329980947,1718892648883,-515.00526744,0.00056712,120]
[329980948,1718892648893,-500.0,0.00056712,120]
[329980949,1718892648902,-1302.22,0.00056712,120]
[329980950,1718892648912,-1219.37,0.00056712,120]
[329980951,1718892648921,-500.0,0.00056712,120]
[329980952,1718892648931,-500.0,0.00056712,120]
[329980953,1718892648942,-510.23,0.00056712,120]
[329980954,1718892648952,-500.0,0.00056712,120]
[329980955,1718892648963,-500.0,0.00056712,120]
[329980956,1718892648973,-583.43,0.00056712,2]
[329980957,1718892648984,-534.4427515,0.00056712,120]
[329980958,1718892648994,-500.0,0.00056712,2]
[329980959,1718892649004,-279.8496183,0.00056849,60]
[329980960,1718892649013,-1000.0,0.00056851,30]
[329980961,1718892649023,-160.0,0.000569,54]
[329980962,1718892649033,-252.0,0.000569,36]
[329980963,1718892649043,-268.0,0.000569,36]
[329980964,1718892649052,-153.0,0.00056957,2]
[329980965,1718892649062,-1308.8047575,0.00056969,2]
[329980966,1718892649071,-500.0,0.00056983,120]
[329980967,1718892649081,-500.0,0.00056983,120]
[329980968,1718892649090,-500.0,0.00056983,120]
[329980969,1718892649102,-500.0,0.00056983,120]
[329980970,1718892649113,-200.0,0.00056983,7]
[329980971,1718892649127,-500.0,0.00056983,120]
[329980972,1718892649136,-716.98,0.00056983,120]
[329980973,1718892649146,-500.0,0.00056983,120]
[329980974,1718892649156,-500.0,0.00056983,2]
[329980975,1718892649165,-500.0,0.00056983,120]
[329980976,1718892649174,-500.0,0.00056983,120]
[329980977,1718892649183,-500.0,0.00056983,60]
[329980978,1718892649194,-500.0,0.00056983,120]
[329980979,1718892649204,-724.68,0.00056983,120]
[329980980,1718892649213,-500.0,0.00056983,120]
[329980981,1718892649223,-500.0,0.00056983,120]
[329980982,1718892649232,-500.0,0.00056983,120]
[329980983,1718892649243,-2258.25,0.00056983,120]
[329980984,1718892649252,-500.0,0.00056983,120]
[329980985,1718892649262,-185.11442688,0.00056983,120]
[329980986,1718892649271,-500.0,0.00056983,120]
[329980987,1718892649281,-500.0,0.00056983,120]
[329980988,1718892649291,-298.31640763,0.00056983,120]
[329980989,1718892649300,-532.17349156,0.00056983,120]
[329980990,1718892649310,-509.5859671,0.00056983,120]
[329980991,1718892649319,-500.0,0.00056983,120]
[329980992,1718892649328,-392.40600233,0.00056983,120]
[329980993,1718892649337,-500.0,0.00056983,120]
[329980994,1718892649347,-500.0,0.00056983,120]
[329980995,1718892649356,-500.0,0.00056983,120]
[329980996,1718892649370,-29722.08,0.00056983,120]
[329980997,1718892649379,-500.0,0.00056983,120]
[329980998,1718892649389,-1327.87,0.00056983,120]
[329980999,1718892649398,-1679.52,0.00056983,21]
[329981000,1718892649407,-699.94,0.00056983,120]
[329981001,1718892649416,-500.0,0.00056983,120]
[329981002,1718892649425,-3101.12,0.00056983,120]
[329981003,1718892649434,-500.0,0.00056983,120]
[329981004,1718892649444,-1180.05,0.00056983,120]
[329981005,1718892649454,-869.58,0.00056983,120]
[329981006,1718892649464,-869.58,0.00056983,120]
[329981007,1718892649473,-869.58,0.00056983,120]
[329981008,1718892649482,-869.58,0.00056983,120]
[329981009,1718892649491,-506.94,0.00056983,120]
[329981010,1718892649501,-500.0,0.00056983,120]
[329981011,1718892649511,-239.35102167,0.00056983,120]
[329981012,1718892649520,-793.66,0.00056983,120]
[329981013,1718892649530,-541.64,0.00056983,120]
[329981014,1718892649539,-4839.61,0.00056983,120]
[329981015,1718892649548,-503.40785745,0.00056983,30]
[329981016,1718892649557,-500.0,0.00056983,120]
[329981017,1718892649566,-500.0,0.00056983,60]
[329981018,1718892649575,-1098.21805272,0.00056983,120]
[329981019,1718892649663,-444.66666662,0.00056983,120]
[329981020,1718892649842,-1776.77528066,0.00056983,120]
[329981021,1718892649852,-833.47,0.00056983,120]
[329981022,1718892649861,-669.68,0.00056983,120]
[329981023,1718892649874,-500.0,0.00056983,120]
[329981024,1718892649883,-500.0,0.00056983,120]
[329981025,1718892649892,-503.99634039,0.00056983,120]
[329981026,1718892649902,-499.28342675,0.00056983,120]
[329981027,1718892649911,-500.0,0.00056983,2]
[329981028,1718892649920,-500.0,0.00056983,120]
[329981029,1718892649930,-500.0,0.00056984,120]
[329981030,1718892649939,-500.0,0.00056984,120]
[329981031,1718892649949,-500.0,0.00056984,120]
[329981032,1718892649958,-518.5810546,0.00056984,120]
[329981033,1718892649968,-500.0,0.00056984,120]
[329981034,1718892649978,-500.0,0.00056984,120]
[329981035,1718892650072,-507.44124608,0.00056984,120]
[329981036,1718892650081,-500.0,0.00056984,120]
[329981037,1718892650091,-582.58398612,0.00056984,120]
[329981038,1718892650102,-500.0,0.00056984,120]
[329981039,1718892650111,-500.0,0.00056984,120]
[329981040,1718892650125,-500.0,0.00056984,120]
[329981041,1718892650134,-515.09642908,0.00056984,120]
[329981042,1718892650144,-500.0,0.00056984,120]
[329981043,1718892650153,-500.0,0.00056984,120]
[329981044,1718892650163,-250.0,0.00056984,120]
[329981045,1718892650173,-500.0,0.00056984,120]
[329981046,1718892650183,-500.0,0.00056984,120]
[329981047,1718892650192,-506.24547878,0.00056984,120]